Cogmind - Beta 16.1 @@@ ROGUE MODE // 2026.02.17 @ 20:48:53 Player: Gingerlink Result: Self-destructed Performance ------------- Evolutions (1) 500 Regions Visited (2) 400 Robots Destroyed (13) 65 Value Destroyed (504) 504 Prototype IDs (0) 0 Alien Tech Used (0) 0 Bonus (0) 0 TOTAL SCORE: 1469 Bonus ------- None Cogmind --------- Core Integrity 361/400 Matter 149/300 Energy 265/265 System Corruption 0% Temperature Cool (0) Movement Walking (120) Location -9/Materials Parts ------- > --- POWER (1) -------- Improved Ion Engine > --- PROPULSION (3) --- Aluminum Leg Aluminum Leg Improved Aluminum Leg > --- UTILITY (2) ------ Small Storage Unit Light Armor Plating > --- WEAPON (3) ------- Particle Gun Improved Light Cannon Mini Grenade Launcher > --- INVENTORY (8) ---- Ion Engine Aluminum Leg Aluminum Leg Large Storage Unit Sensor Array Improved Targeting Computer Medium Laser Small Laser Peak State ------------ > --- POWER ------------ Improved Ion Engine > --- PROPULSION ------- Aluminum Leg Aluminum Leg Improved Aluminum Leg > --- UTILITY ---------- Small Storage Unit Light Armor Plating > --- WEAPON ----------- Medium Laser Particle Gun Improved Light Cannon > --- INVENTORY -------- Ion Engine Aluminum Leg Aluminum Leg Large Storage Unit Sensor Array Improved Targeting Computer Improved Targeting Computer Small Laser [Rating: 14] Favorites ----------- Power Ion Engine Engine Ion Engine Propulsion Aluminum Leg Leg Aluminum Leg Utility Small Storage Unit Device Sensor Array Storage Small Storage Unit Protection Light Armor Plating Weapon Medium Laser Energy Gun Medium Laser Ballistic Cannon Improved Light Cannon Launcher Mini Grenade Launcher Build | -11 -10 -9 ------- Run | Yrd Mat Mat Slots Evolved 2 | . . 2 Power . | . . . Propulsion 1 | . . 1 Utility . | . . . Weapon 1 | . . 1 Parts Attached 17 | 6 2 9 Power 2 | 1 . 1 Engine 2 | 1 . 1 Core . | . . . Reactor . | . . . Propulsion 6 | 2 . 4 Treads . | . . . Leg 6 | 2 . 4 Wheel . | . . . Hover . | . . . Flight . | . . . Utility 4 | 1 2 1 Device 1 | . 1 . Storage 2 | 1 . 1 Processor . | . . . Hackware . | . . . Protection 1 | . 1 . Artifact . | . . . Weapon 5 | 2 . 3 Energy Gun 3 | 2 . 1 Energy Cannon . | . . . Ballistic Gun . | . . . Ballistic Cannon 1 | . . 1 Launcher 1 | . . 1 Special Weapon . | . . . Impact Weapon . | . . . Slashing Weapon . | . . . Piercing Weapon . | . . . Special Melee Weapon . | . . . Unidentified Prototypes . | . . . Parts Lost 1 | . 1 . Power . | . . . Propulsion . | . . . Utility 1 | . 1 . Weapon . | . . . Highest Loss Streak 1 | . 1 . To Critical Strikes . | . . . Average Backups 4 | . 1 6 Power . | . 1 1 Propulsion 1 | . . 1 Utility 1 | . . 2 Weapon . | . . 1 Tool/Special . | . . . Unused Backups 9 | . . 9 Power 1 | . . 1 Propulsion 2 | . . 2 Utility 6 | . . 6 Weapon . | . . . Tool/Special . | . . . Average Slot Usage (%) 97 | . 91 99 Engine 11 | . 14 11 Leg 31 | . 28 33 Device 1 | . 3 . Storage 11 | . 14 11 Protection 8 | . 2 11 Energy Gun 21 | . 28 18 Ballistic Cannon 7 | . . 10 Launcher 2 | . . 3 Peak Build Rating 14 | 6 7 14 Average Rating 9 | 5 6 12 On Entrance 4 | . 6 7 Avg Prop Armor Cover (%) . | . . . Naked Turns . | . . . Heaviest Build 39 | 13 16 39 Greatest Support 33 | 20 20 33 Greatest Overweight (x) 1 | . . 1 Average Overweight (x) . | . . . Largest Inventory Capacity 15 | 8 8 15 Average Capacity 7 | 7 8 8 Most Carried 8 | 1 4 8 Average Carried 4 | . 2 6 Final Capacity 8 | 8 8 8 Final Carried 8 | 1 4 8 Class Distribution -------------------- 61% | Tank 38% | Mutant Dominant Class ---------------- Mutant | -10/Materials Tank | -9/Materials Resources | -11 -10 -9 ----------- Run | Yrd Mat Mat Matter Collected 448 | 165 100 183 Remotely . | . . . Salvage Created 412 | . 144 268 Parts 19 | . 6 13 Haulers Intercepted . | . . . Recyclers Shooed 2 | . . 2 Parts Field Recycled . | . . . Retrieved Matter . | . . . Parts Self-Destructed . | . . . Prevented . | . . . Parts Restored . | . . . Kills | -11 -10 -9 ------- Run | Yrd Mat Mat Combat Hostiles Destroyed 11 | . 3 8 Guns 6 | . 3 3 Cannons 4 | . . 4 AOE 1 | . . 1 Classes Destroyed 4 | . 2 2 Watcher 2 | . 1 1 Grunt 8 | . 3 5 Duelist 1 | . . 1 Sentry 2 | . . 2 Best Kill Streak 2 | . 2 2 Combat Bots Only 2 | . 2 2 Max Kills in Single Turn 1 | . 1 1 Gunslinging . | . . . Exploded 1 | . . 1 Melee . | . . . Uniques/NPCs Destroyed . | . . . Combat | -11 -10 -9 -------- Run | Yrd Mat Mat Hostile Shots Fired 56 | . 16 40 Missed 14 | . 4 10 Hits 42 | . 12 30 Melee 1 | . . 1 Projectile 41 | . 12 29 Critical Strikes 2 | . . 2 Damage Taken 552 | . 134 418 Core 51 | . 12 39 Absorbed by Shields . | . . . Core Remaining (%) 97 | 100 95 . Volleys Fired 44 | . 20 24 Largest 3 | . 2 3 Hottest 148 | . 90 148 Shots Fired 102 | . 38 64 Gun 69 | . 38 31 Cannon 23 | . . 23 Launcher 10 | . . 10 Special . | . . . Kinetic 23 | . . 23 Thermal 69 | . 38 31 Explosive 10 | . . 10 Electromagnetic . | . . . Robot Hit Streak 8 | . 8 5 Robot Miss Streak 3 | . 3 3 Penetration Max . | . . . Secondary Targets . | . . . Shots Hit Robots 50 | . 23 27 Core Hits 23 | . 7 16 Critical Kills . | . . . Critical Parts Destroyed . | . . . Critical Strikes 1 | . . 1 Burn 1 | . . 1 Melee Attacks . | . . . Impact . | . . . Slashing . | . . . Piercing . | . . . Sneak Attacks . | . . . Combat Hostiles . | . . . Follow-up Attacks . | . . . Damage Inflicted 1069 | . 269 800 Guns 490 | . 269 221 Cannons 263 | . . 263 Explosions 306 | . . 306 Melee . | . . . Ramming 10 | . . 10 Kinetic 263 | . . 263 Thermal 560 | . 269 291 Explosive 236 | . . 236 Electromagnetic . | . . . Impact . | . . . Slashing . | . . . Piercing . | . . . Highest Corruption . | . . . Average Corruption . | . . . Corruption Purged . | . . . Corruption Blocked . | . . . Overload Shots . | . . . Overflow Damage . | . . . Projectiles . | . . . Explosions . | . . . Melee . | . . . Knockbacks 1 | . . 1 Impact . | . . . Kinetic 1 | . . 1 Secondary . | . . . Self-Inflicted Damage 13 | . . 13 Shots 1 | . . 1 Rammed . | . . . Targets Rammed 2 | . . 2 Kicked 2 | . . 2 Crushed . | . . . Highest Temperature 381 | . 258 381 Average Temperature 116 | . 88 131 Received Heat Transfer 276 | . 72 204 Effects 4 | . . 4 Shutdowns 1 | . . 1 Interference 2 | . . 2 Matter Decay 1 | . . 1 Siege Activations . | . . . Martial Activations . | . . . Shielding Activations . | . . . Robots Disrupted . | . . . Combat Hostiles . | . . . Robots Corrupted . | . . . Combat Hostiles . | . . . Parts Fried . | . . . Impact Corruptions . | . . . Robots Melted . | . . . Combat Hostiles . | . . . Parts Melted 2 | . 1 1 Heat Transferred 1374 | . 695 679 Parts Sabotaged . | . . . Parts Stolen . | . . . Parts Stripped . | . . . Power Chain Reactions . | . . . Alert | -11 -10 -9 ------- Run | Yrd Mat Mat Maximum Alert Level 1 | . . 1 Low Security (%) 87 | 100 100 79 Level 1 12 | . . 20 Level 2 . | . . . Level 3 . | . . . Level 4 . | . . . Level 5 . | . . . High Security . | . . . Max Security . | . . . Peak Influence 248 | . 40 248 Initial . | . . . Average 46 | . 9 71 Influence Increases 473 | . 87 386 Destroy 0b10 Robot/C 220 | . 60 160 Destroy 0b10 Robot/NC 10 | . 5 5 Destroy Leader 84 | . 22 62 Disable Machine 75 | . . 75 Destroy Structure 84 | . . 84 Influence Decreases 257 | . 87 170 Time Decay 247 | . 77 170 Lost Part 10 | . 10 . Squads Dispatched 4 | . 2 2 Investigation 2 | . 1 1 Extermination . | . . . Reinforcement 2 | . 1 1 Assault . | . . . Garrison . | . . . Intercept . | . . . Searches Triggered . | . . . Construction Impeded . | . . . Haulers Reinforced . | . . . Active Scanning Responses . | . . . Cargo Convoy Interrupts . | . . . Stealth | -11 -10 -9 --------- Run | Yrd Mat Mat Distress Signals . | . . . Communications Jammed . | . . . Distress Signals . | . . . Times Spotted 20 | . 7 13 Peak Tracking Total 3 | . 2 3 Tactical Retreats . | . . . Traps | -11 -10 -9 ------- Run | Yrd Mat Mat Traps Triggered 2 | . 1 1 Indirectly . | . . . Trap Hack Attempts . | . . . Triggered . | . . . Disarmed . | . . . Reprogrammed . | . . . Reused . | . . . Traps Extracted . | . . . Installed . | . . . Triggered . | . . . Machines | -11 -10 -9 ---------- Run | Yrd Mat Mat Machines Disabled 5 | . . 5 Max in Single Turn 4 | . . 4 Machines Repaired . | . . . Machines Dismantled . | . . . Machines Sabotaged . | . . . Overloaded Fab Kills . | . . . Hacking | -11 -10 -9 --------- Run | Yrd Mat Mat Machines Accessed . | . . . Terminals . | . . . Fabricators . | . . . Repair Stations . | . . . Recycling Units . | . . . Scanalyzers . | . . . Garrison Access . | . . . Total Hacks . | . . . Successful . | . . . Failed . | . . . Catastrophic . | . . . Database Lockouts . | . . . Manual . | . . . Terminals . | . . . Fabricators . | . . . Repair Stations . | . . . Recycling Units . | . . . Scanalyzers . | . . . Garrison Access . | . . . Terminal Hacks . | . . . Fabricator Hacks . | . . . Repair Station Hacks . | . . . Recycling Unit Hacks . | . . . Scanalyzer . | . . . Garrison Access Hacks . | . . . Unauthorized Hacks . | . . . Terminals . | . . . Fabricators . | . . . Repair Stations . | . . . Recycling Units . | . . . Scanalyzers . | . . . Garrison Access . | . . . Data Cores Recovered . | . . . Used . | . . . Hacking Detections . | . . . Full Trace Events . | . . . Feedback Events . | . . . Feedback Blocked . | . . . Robot Schematics Acquired . | . . . Robots Built . | . . . Authchips . | . . . Time . | . . . Total Robot Build Rating . | . . . Part Schematics Acquired . | . . . Parts Built . | . . . Authchips . | . . . Time . | . . . Total Part Build Rating . | . . . Part Studies Acquired . | . . . Parts Repaired . | . . . Time . | . . . Parts Recycled . | . . . Recycled Matter . | . . . Retrieved Matter . | . . . Retrieved Components . | . . . Parts Scanalyzed . | . . . Part Schematics Acquired . | . . . Parts Damaged . | . . . Bothacking | -11 -10 -9 ------------ Run | Yrd Mat Mat Used RIF Installer . | . . . Robots Hacked . | . . . Non-combat . | . . . Combat . | . . . Robot Hacks Applied . | . . . Relay Couplers Released . | . . . Fabnet Peak Effective % . | . . . Robots Rewired . | . . . Allies Hacked . | . . . Hacks Repelled . | . . . Allies | -11 -10 -9 -------- Run | Yrd Mat Mat Total Allies . | . . . Largest Group . | . . . Highest-Rated Group . | . . . Highest-Rated Ally . | . . . Total Orders . | . . . Ally Attacks . | . . . Total Damage . | . . . Kills . | . . . Allies Corrupted . | . . . Allies Melted . | . . . Intel | -11 -10 -9 ------- Run | Yrd Mat Mat Active Infowar (turns) 69 | . 69 . Sensors 69 | . 69 . Robot Analysis Total . | . . . Derelict Logs Recovered . | . . . Drone Launches . | . . . Drone Recoveries . | . . . Exploration | -11 -10 -9 ------------- Run | Yrd Mat Mat Turns Passed 1022 | 110 292 620 Spaces Moved 608 | 85 159 364 Core 9 | 9 . . Treads . | . . . Legs 599 | 76 159 364 Wheels . | . . . Hover . | . . . Flight . | . . . Fastest Speed 50 | 50 120 120 Average Speed 119 | 112 120 120 Slowest Speed 190 | 120 120 190 Overloaded Moves . | . . . Propulsion Burnouts . | . . . Robots Hopped . | . . . Potential Cave-ins . | . . . Cave-ins Triggered . | . . . Exploration Rate (%) 22 | 4 30 34 Regions Visited 2 Branch Regions . Pre-discovered Areas . | . . . Known Exits Taken . | . . . Unknown Exits Taken 2 | 1 1 . Scrap Searched . | . . . Spaces Dug . | . . . Terrain Destroyed 119 | . . 119 Melee . | . . . Projectile 4 | . . 4 AOE 115 | . . 115 Terrain Rammed . | . . . Walls Destroyed . | . . . Machines Disabled . | . . . Actions | -11 -10 -9 --------- Run | Yrd Mat Mat Total 815 | 96 221 498 Wait 115 | 5 38 72 Move 606 | 84 158 364 Hop . | . . . Pick Up 14 | 1 3 10 Fast Attach 13 | 6 2 5 Attach 2 | . . 2 Detach 3 | . . 3 Swap 4 | . . 4 Drop 12 | . . 12 Fire 44 | . 20 24 Melee . | . . . Ram . | . . . Kick 2 | . . 2 Crush . | . . . Escape Stasis . | . . . Rewire . | . . . Trap . | . . . Miscellaneous . | . . . Route ------- -11/Scrapyard -10/Materials -9/Materials (discovered 1 exit: [*Mat]) History --------- Turn | Location | Event 4 | -11/Scrapyard | Discovered new exit (range 16) 111 | -11/Scrapyard | Entered Materials 310 | -10/Materials | Build established: Mutant 379 | -10/Materials | Discovered new exit (range 3) 403 | -10/Materials | Entered another Materials area 403 | -9/Materials | Evolved 2 slots: Propulsion x1, Weapon x1 687 | -9/Materials | Build established: Tank 847 | -9/Materials | Discovered new exit (range 15) 1023 | -9/Materials | Self-destructed Last Messages --------------- K-01 Serf collects debris. Dropped Imp. Light Cannon. K-01 Serf collects debris. Acquired Imp. Light Cannon. U-05 Engineer lays Concrete. The unstable cave ceiling collapses. U-05 Engineer lays Concrete. K-01 Serf collects debris. U-05 Engineer lays Concrete. K-01 Serf collects debris. U-05 Engineer lays Concrete. K-01 Serf collects debris. U-05 Engineer lays Concrete. K-01 Serf collects debris. U-05 Engineer lays Concrete. U-05 Engineer builds a Wall. The unstable cave ceiling collapses. U-05 Engineer builds a Door. K-01 Serf collects debris. U-05 Engineer builds a Wall. Map ----- +----------------------------------------------------+ | ?????? ?????????# # """ ####?????????????????? | | ???????????????????# # """ #????????????????????? | | ???????????????????# # """ #????????????????????? | | ???????????????????# + #????????????????????? | | ???????????????????# # #????????????????????? | | ???????????????????# # #??????""????????????? | | ??????????????????## #######????""""" #????????? | | ?????????????????## # #?????? +????????? | | ?????????????##### ####### #????????? | | ?????????????+ / #????????? | | ?????????????##### # #### #????????? | | ?????????????????### # #?????#########?????????? | | ???????????????????#### #???????????????????????? | | ????????????????????###/#########??? ? ???????? | | ????????????????????# #?? ??????? | | ????????????????????# #? ????????? | | ????????????????????# % # #???????????? | | ????????????????????# #???????????? | | ????????????????????# # #???????????? | | ????????????????????# + + ?????????? | | ????????????????????# ] # # ????????? | | ??????????????????############ #???????????? | | ??????????????????# / # # #???????????? | | ??????????????????# !! #####? #???????????? | | ??????????????????# !! #?????? #???????????? | | ??????????????????# @ #???????#???????????? | | ??????????????????##+#########??????????????????? | | ??????????????????# #???? #??????????????????? | | ??????????????????+ #?? #??????????????????? | | ??????????????????# # =#??????????????????? | | ??????????????????# + #??????????????????? | | ??????????????????# # "T" #??????????????????? | | ??????????????????# #?? #??????????????????? | | ??????????????????# #????###??????????????????? | | ??????????????????# ?????????????????????????? | | ??????????????????# ?????????????????????????? | | ?????????????????? ????????????????????????? | | ??????????????????##+###????????????????????????? | | ??????????????????? ???????????????????????????? | | ??????????????????? ???????????????????????????? | | ??????????????????? ???????????????????????????? | | ??????????????????? ???????????????????????????? | | ??????????????????? ???????????????????????????? | | ?????????????????? ???????????????????????????? | | ?????????????????? ???????????????????????????? | | ??????????????????? ????????????????????????????? | | ????????????????????????????????????????????????? | | ????????????????????????????????????????????????? | | ????????????????????????????????????????????????? | | ????????????????????????????????????????????????? | +----------------------------------------------------+ Best States ------------- Heat Dissipation 28 Energy Generation 12 Energy Capacity 265 Matter Stores 300 Matter Capacity 300 Sight Range 16 Robot Scan Range 14 Terrain Scan Density 10 Armor Coverage 150 Evasion (%) 55 Item Schematics ----------------- None Robot Schematics ------------------ None Fabricated ------------ Nothing Repaired ---------- Nothing Studied --------- None Alien Tech Used ----------------- None Achievements -------------- None Challenges ------------ None Game ------ Seed DispersalSiegePod Manual? 0 Play Time 00:08:34 Cumulative 12.4 hours Start 2026.02.15 @ 21:59:02 End 2026.02.17 @ 20:48:53 Sessions 3 Manual Loads 0 Difficulty Rogue Special Mode None Game No. 24 Rogue 24 Adventurer 0 Explorer 0 Win Type - Total 0 Types 0/0/0/0/0/0/0/0/0/0 Lore% 1 Gallery% 13 Achievement% 8 Wizard Run 0 Options --------- Layout 0 ASCII 0 Keyboard 1 Movement Vi Keybinds 0 Fullscreen 2 Font 24/Smallcaps Map View 76x50 Zoom Use 0% Tactical HUD 0 Map Filters NONE Filters NONE Steam 1 RUN: cc858007-2134-452d-9c93-3410f2bdc053